Cogmind - Beta 14 *** ADVENTURER MODE // 2025.02.28 @ 19:16:55 Player: scartomyzon Result: Self-destructed Performance ------------- Evolutions (1) 500 Regions Visited (2) 400 Robots Destroyed (27) 135 Value Destroyed (585) 585 Prototype IDs (0) 0 Alien Tech Used (0) 0 Bonus (0) 0 TOTAL SCORE: 1620 Bonus ------- None Cogmind --------- Core Integrity 217/400 Matter 300/300 Energy 100/100 System Corruption 0% Temperature Cool (18) Movement Core (350) Ox6 Location -9/Materials Parts ------- > --- POWER (1) -------- (None) > --- PROPULSION (3) --- (None) > --- UTILITY (3) ------ Large Storage Unit Improved Terrain Scanner > --- WEAPON (2) ------- (None) > --- INVENTORY (15) --- Light Ion Engine Aluminum Leg Aluminum Leg Wheel Wheel ECM Suite Shock Bomb Launcher Grenade Launcher Mining Laser Peak State ------------ > --- POWER ------------ Nuclear Core > --- PROPULSION ------- Aluminum Leg Aluminum Leg Aluminum Leg > --- UTILITY ---------- Large Storage Unit Improved Terrain Scanner High-powered Tractor Beam > --- WEAPON ----------- Light Assault Rifle Heavy Assault Rifle > --- INVENTORY -------- Light Ion Engine Aluminum Leg Aluminum Leg Wheel Wheel ECM Suite Shock Bomb Launcher Grenade Launcher Mining Laser [Rating: 17] Favorites ----------- Power Ion Engine Engine Ion Engine Power Core Nuclear Core Propulsion Aluminum Leg Treads Light Treads Leg Aluminum Leg Utility Large Storage Unit Device Seismic Detector Storage Large Storage Unit Weapon Light Assault Rifle Energy Gun Small Laser Ballistic Gun Light Assault Rifle Launcher Shock Bomb Launcher Special Weapon Mining Laser Build | -11 -10 -9 ------- Run | Yrd Mat Mat Slots Evolved 2 | . . 2 Power . | . . . Propulsion 1 | . . 1 Utility 1 | . . 1 Weapon . | . . . Parts Attached 26 | 8 7 11 Power 2 | 1 . 1 Engine 1 | 1 . . Core 1 | . . 1 Reactor . | . . . Propulsion 9 | 2 5 2 Treads 2 | 2 . . Leg 7 | . 5 2 Wheel . | . . . Hover . | . . . Flight . | . . . Utility 5 | 2 1 2 Device 3 | 1 . 2 Storage 2 | 1 1 . Processor . | . . . Hackware . | . . . Protection . | . . . Artifact . | . . . Weapon 10 | 3 1 6 Energy Gun 2 | 2 . . Energy Cannon . | . . . Ballistic Gun 4 | 1 . 3 Ballistic Cannon . | . . . Launcher 1 | . . 1 Special Weapon 3 | . 1 2 Impact Weapon . | . . . Slashing Weapon . | . . . Piercing Weapon . | . . . Special Melee Weapon . | . . . Unidentified Prototypes . | . . . Parts Lost 10 | . 2 8 Power 1 | . . 1 Propulsion 5 | . 2 3 Utility 2 | . . 2 Weapon 2 | . . 2 Highest Loss Streak 5 | . 1 5 To Critical Strikes . | . . . Average Slot Usage (%) 95 | . 99 88 Engine 9 | . 14 . Core 3 | . . 10 Treads 1 | . 2 . Leg 27 | . 24 32 Device 14 | . 14 16 Storage 12 | . 14 11 Energy Gun 8 | . 13 . Ballistic Gun 12 | . 14 9 Special Weapon 3 | . . 7 Peak Build Rating 17 | 7 8 17 Average Rating 9 | 5 7 13 On Entrance 5 | . 7 8 Naked Turns . | . . . Heaviest Build 33 | 13 28 33 Greatest Support 40 | 40 40 30 Greatest Overweight (x) 9 | . 9 2 Average Overweight (x) . | . . . Largest Inventory Capacity 15 | 8 15 15 Average Capacity 14 | 7 14 15 Most Carried 12 | 7 10 12 Average Carried 8 | 3 8 10 Final Capacity 15 | 8 15 15 Final Carried 10 | 7 10 9 Class Distribution -------------------- 100% | Mutant Dominant Class ---------------- Mutant | -10/Materials Mutant | -9/Materials Resources | -11 -10 -9 ----------- Run | Yrd Mat Mat Matter Collected 610 | 291 91 228 Remotely 187 | . . 187 Salvage Created 814 | 140 396 278 Parts 58 | 12 24 22 Haulers Intercepted . | . . . Recyclers Shooed . | . . . Parts Field Recycled . | . . . Retrieved Matter . | . . . Parts Self-Destructed . | . . . Prevented . | . . . Kills | -11 -10 -9 ------- Run | Yrd Mat Mat Combat Hostiles Destroyed 20 | . 11 9 Guns 16 | . 11 5 AOE 4 | . . 4 Classes Destroyed 4 | 1 2 1 Builder 1 | . . 1 Tunneler 6 | 6 . . Swarmer 7 | . 3 4 Grunt 13 | . 8 5 Best Kill Streak 5 | 3 5 4 Combat Bots Only 5 | . 5 4 Max Kills in Single Turn 3 | 1 1 3 Gunslinging . | . . . Exploded 3 | . . 3 Melee . | . . . Uniques/NPCs Destroyed . | . . . Combat | -11 -10 -9 -------- Run | Yrd Mat Mat Hostile Shots Fired 182 | . 66 116 Missed 47 | . 16 31 Damage Taken 1223 | . 451 772 Core 292 | . 109 183 Absorbed by Shields . | . . . Ignored by Resistances 376 | . 137 239 Core Remaining (%) 78 | 100 56 . Volleys Fired 92 | 17 36 39 Largest 2 | 2 2 2 Hottest 123 | 80 60 123 Shots Fired 157 | 31 72 54 Gun 146 | 31 72 43 Cannon . | . . . Launcher 2 | . . 2 Special 9 | . . 9 Kinetic 90 | 11 36 43 Thermal 65 | 20 36 9 Explosive . | . . . Electromagnetic 2 | . . 2 Robot Hit Streak 17 | 14 16 17 Robot Miss Streak 4 | 2 4 1 Penetration Max . | . . . Secondary Targets 3 | . 2 1 Max Gunslinging Chain 1 | . 1 1 Shots Hit Robots 112 | 24 54 34 Core Hits 44 | 8 22 14 Critical Kills . | . . . Critical Parts Destroyed 1 | . . 1 Critical Strikes 1 | . . 1 Destroy 1 | . . 1 Melee Attacks . | . . . Impact . | . . . Slashing . | . . . Piercing . | . . . Sneak Attacks . | . . . Combat Hostiles . | . . . Follow-up Attacks . | . . . Damage Inflicted 1454 | 248 534 672 Guns 1243 | 248 534 461 Cannons . | . . . Explosions 198 | . . 198 Melee . | . . . Ramming 13 | . . 13 Kinetic 724 | 62 201 461 Thermal 615 | 186 333 96 Explosive . | . . . Electromagnetic 102 | . . 102 Impact . | . . . Slashing . | . . . Piercing . | . . . Highest Corruption 1 | . 1 . Average Corruption 1 | . 1 . Corruption Purged . | . . . Corruption Blocked . | . . . Effects 5 | . 5 . Message Errors 2 | . 2 . Heat Flow Errors 1 | . 1 . Data Loss (major) 2 | . 2 . Overload Shots . | . . . Overflow Damage . | . . . Projectiles . | . . . Explosions . | . . . Melee . | . . . Knockbacks . | . . . Impact . | . . . Kinetic . | . . . Secondary . | . . . Self-Inflicted Damage 15 | . . 15 Shots 2 | . . 2 Rammed . | . . . Targets Rammed 2 | . . 2 Kicked 2 | . . 2 Crushed . | . . . Highest Temperature 225 | 40 225 32 Average Temperature 41 | 14 64 10 Received Heat Transfer 723 | . 309 414 Siege Activations . | . . . Robots Corrupted . | . . . Combat Hostiles . | . . . Parts Fried . | . . . Impact Corruptions . | . . . Robots Melted . | . . . Combat Hostiles . | . . . Parts Melted 1 | . 1 . Heat Transferred 1300 | 425 725 150 Parts Sabotaged . | . . . Parts Stolen . | . . . Parts Stripped . | . . . Power Chain Reactions 2 | . . 2 Alert | -11 -10 -9 ------- Run | Yrd Mat Mat Peak Influence 281 | 30 281 168 Initial 16 | . 16 . Average 53 | 12 61 48 Maximum Alert Level 1 | . 1 . Low Security (%) 95 | 100 91 100 Level 1 4 | . 8 . Level 2 . | . . . Level 3 . | . . . Level 4 . | . . . Level 5 . | . . . High Security . | . . . Max Security . | . . . Squads Dispatched 5 | . 2 3 Investigation 4 | . 2 2 Extermination . | . . . Reinforcement 1 | . . 1 Assault . | . . . Garrison . | . . . Intercept . | . . . Searches Triggered . | . . . Construction Impeded . | . . . Haulers Reinforced . | . . . Active Scanning Responses . | . . . Cargo Convoy Interrupts . | . . . Stealth | -11 -10 -9 --------- Run | Yrd Mat Mat Distress Signals 6 | . 3 3 Communications Jammed . | . . . Distress Signals . | . . . Times Spotted 48 | . 25 23 Peak Tracking Total 6 | . 6 5 Tactical Retreats 1 | . . 1 Traps | -11 -10 -9 ------- Run | Yrd Mat Mat Traps Triggered 4 | . 4 . Indirectly . | . . . Trap Hack Attempts . | . . . Triggered . | . . . Disarmed . | . . . Reprogrammed . | . . . Reused . | . . . Traps Extracted . | . . . Installed . | . . . Triggered . | . . . Machines | -11 -10 -9 ---------- Run | Yrd Mat Mat Machines Disabled . | . . . Max in Single Turn . | . . . Machines Repaired . | . . . Machines Dismantled . | . . . Machines Sabotaged . | . . . Overloaded Fab Kills . | . . . Hacking | -11 -10 -9 --------- Run | Yrd Mat Mat Machines Accessed 11 | . 9 2 Terminals 10 | . 8 2 Fabricators . | . . . Repair Stations . | . . . Recycling Units 1 | . 1 . Scanalyzers . | . . . Garrison Access . | . . . Total Hacks 29 | . 24 5 Successful 11 | . 9 2 Failed 18 | . 15 3 Catastrophic 3 | . 2 1 Database Lockouts . | . . . Manual 30 | . 25 5 Terminals 28 | . 23 5 Fabricators . | . . . Repair Stations . | . . . Recycling Units 1 | . 1 . Scanalyzers . | . . . Garrison Access . | . . . Terminal Hacks 2 | . 2 . Robot Analysis 1 | . 1 . Level Access Points 1 | . 1 . Fabricator Hacks . | . . . Repair Station Hacks . | . . . Recycling Unit Hacks 1 | . 1 . Report Inventory 1 | . 1 . Scanalyzer . | . . . Garrison Access Hacks . | . . . Unauthorized Hacks 8 | . 6 2 Terminals 8 | . 6 2 Botnet 8 | . 6 2 Fabricators . | . . . Repair Stations . | . . . Recycling Units . | . . . Scanalyzers . | . . . Garrison Access . | . . . Data Cores Recovered . | . . . Used . | . . . Hacking Detections 9 | . 7 2 Full Trace Events 5 | . 3 2 Feedback Events . | . . . Feedback Blocked . | . . . Robot Schematics Acquired . | . . . Robots Built . | . . . Authchips . | . . . Time . | . . . Total Robot Build Rating . | . . . Part Schematics Acquired . | . . . Parts Built . | . . . Authchips . | . . . Time . | . . . Total Part Build Rating . | . . . Parts Repaired . | . . . Time . | . . . Parts Recycled . | . . . Recycled Matter . | . . . Retrieved Matter . | . . . Retrieved Components . | . . . Parts Scanalyzed . | . . . Part Schematics Acquired . | . . . Parts Damaged . | . . . Bothacking | -11 -10 -9 ------------ Run | Yrd Mat Mat Used RIF Installer . | . . . Robots Hacked . | . . . Non-combat . | . . . Combat . | . . . Robot Hacks Applied . | . . . Relay Couplers Released . | . . . Fabnet Peak Effective % . | . . . Robots Rewired . | . . . Allies Hacked . | . . . Hacks Repelled . | . . . Allies | -11 -10 -9 -------- Run | Yrd Mat Mat Total Allies . | . . . Largest Group . | . . . Highest-Rated Group . | . . . Highest-Rated Ally . | . . . Total Orders . | . . . Ally Attacks . | . . . Total Damage . | . . . Kills . | . . . Allies Corrupted . | . . . Allies Melted . | . . . Intel | -11 -10 -9 ------- Run | Yrd Mat Mat Robot Analysis Total 1 | . 1 . Derelict Logs Recovered . | . . . Drone Launches . | . . . Drone Recoveries . | . . . Exploration | -11 -10 -9 ------------- Run | Yrd Mat Mat Turns Passed 3269 | 268 1978 1023 Spaces Moved 1610 | 131 980 499 Core 7 | 5 2 . Treads 218 | 126 92 . Legs 1385 | . 886 499 Wheels . | . . . Hover . | . . . Flight . | . . . Fastest Speed 50 | 50 160 120 Average Speed 179 | 155 188 169 Slowest Speed 500 | 160 500 260 Overloaded Moves . | . . . Propulsion Burnouts . | . . . Robots Hopped . | . . . Cave-ins Triggered . | . . . Exploration Rate (%) 47 | 7 96 38 Regions Visited 2 Branch Regions . Pre-discovered Areas . | . . . Known Exits Taken 1 | . 1 . Unknown Exits Taken 1 | 1 . . Scrap Searched . | . . . Spaces Dug 8 | . . 8 Terrain Destroyed 10 | . . 10 Melee . | . . . Projectile 8 | . . 8 AOE 2 | . . 2 Terrain Rammed . | . . . Walls Destroyed . | . . . Machines Disabled . | . . . Actions | -11 -10 -9 --------- Run | Yrd Mat Mat Total 1808 | 162 1044 602 Wait 62 | . 17 45 Move 1608 | 130 979 499 Hop . | . . . Pick Up 13 | 7 3 3 Fast Attach 9 | 7 2 . Attach 3 | . . 3 Detach . | . . . Swap 14 | 1 5 8 Drop 5 | . 2 3 Fire 92 | 17 36 39 Melee . | . . . Ram . | . . . Kick 2 | . . 2 Crush . | . . . Escape Stasis . | . . . Rewire . | . . . Trap . | . . . Miscellaneous . | . . . Route ------- -11/Scrapyard -10/Materials (discovered 4 exits: *Mat x3 / [*Min]) -9/Materials (discovered 1 exit: [*Min]) History --------- Turn | Location | Event 100 | -11/Scrapyard | Discovered new exit (range 15) 269 | -11/Scrapyard | Entered Materials 329 | -10/Materials | Build established: Mutant 556 | -10/Materials | Discovered new exit (range 16) 966 | -10/Materials | Discovered new exit (range 10) 980 | -10/Materials | Identified exit to Materials 1508 | -10/Materials | Discovered new exit (range 11) 2247 | -10/Materials | Entered another Materials area 2247 | -9/Materials | Evolved 2 slots: Propulsion x1, Utility x1 3197 | -9/Materials | Discovered new exit (range 7) 3270 | -9/Materials | Self-destructed Last Messages --------------- 03044_ G-34 Mercenary destroyed. 03045_ Acquired 31 matter. 03066_ K-01 Serf collects debris. 03068_ Acquired 10 matter. 03069_ R-06 Scavenger collects Aluminum Leg. 03098_ W-16 Scout distress signal alerts nearby ally. 03108_ Hvy. Assault Rifle destroyed. 03112_ Kicked U-05 Engineer. 03112_ U-05 Engineer destroyed. 03113_ Acquired 7 matter. 03178_ Terminal disabled. 03197_ EXIT=FOUND 03224_ K-01 Serf cleans the Terminal. 03244_ Critical hit (Burn: +37). 03254_ K-01 Serf cleans the Terminal. 03261_ Hpw. Tractor Beam destroyed. 03263_ Aluminum Leg destroyed. 03268_ Nuclear Core destroyed. 03268_ Aluminum Leg destroyed. Map ----- +----------------------------------------------------+ | ?????????????????????????????????? | | ?????????????????????????????????? | | ?????????????????????????????????? | | ?????????????????????????????????? | | ??????????????????????????? ?????? | | ??????????????????????????#+##???? | | ????????????????????????? ???? | | ?????????????????????????? ???# | | ?????????????????????????? ??? | | ??????????????????????????# ??? | | ??????????????????????????# ?## | | ??????????????????????#???# #?# | | ?????###+##???????????????# ?+ | | ?????# !?????????????#?# #?# | | ?????# ????????"??????# #?# | | ?????# ??????????????## ### | | ?????# ??????????????# ##+ | | ????#? ??????????????# | | ??????# #??????????????# T | | ??????# #?????? ???? #?# | | ??????# #????????? ??# ##+ | | ??????# #?????###/###??## ## | | ??????# ####### g ##### ## | | ??????# kg ## | | ??????+ T / | | ??????# @ Y ## | | ??????###/####### ##+####### | | ???????? ?????####### #?# | | ???????? ???????#???# T #?# | | ??????? """ ??????????# #?# | | ??????? """ ??????????# !!] #?### | | ??????# """ ?#???????# !!] #??# | | ??????# ?????????# !] #??# | | ??????#####+##????????## ######?#" | | ?????????????????????#?###?#???##" | | ??????????????????????????###???#" | | ?#???? ???? ????????????#???????# | | ????????????????#?????????????#?## | | ?????????????????????????#????#?## | | ???????????????#??????????#?#???# | | ?????????????????????#??????##??# | | ???????????????????????????#????# | | ????????????????????????????????# | | ?????????????????????????#?#????# | | ????????????????????????#???????# | | ????????????????????############# | | ??????????????? ????# # | | ????????????????????# # | | ??????????????????#?# # | | ????????????????????# ## | +----------------------------------------------------+ Best States ------------- Heat Dissipation 28 Energy Generation 14 Energy Capacity 250 Matter Stores 300 Matter Capacity 300 Sight Range 16 Terrain Scan Range 16 Terrain Scan Density 10 Resistance: KI 20 Resistance: TH 20 Resistance: EX 20 Resistance: EM 20 Resistance: I 20 Resistance: S 20 Resistance: P 20 Evasion (%) 55 Recoil Reduction 2 Offensive Hacking 10 Item Schematics ----------------- None Robot Schematics ------------------ None Fabricated ------------ Nothing Alien Tech Used ----------------- None Achievements -------------- None Challenges ------------ None Game ------ Seed ThiefKineticReconfigurator Manual? 0 Play Time 00:27:18 Cumulative 35.5 hours Start 2025.02.28 @ 18:52:48 End 2025.02.28 @ 19:16:55 Sessions 1 Manual Loads 0 Difficulty Adventurer Special Mode None Game No. 23 Rogue 0 Adventurer 23 Explorer 0 Win Type - Total 0 Types 0/0/0/0/0/0/0/0/0 Lore% 15 Gallery% 21 Achievement% 20 Wizard Run 0 Options --------- Layout 2 ASCII 0 Keyboard 1 Movement Arrows Keybinds 0 Fullscreen 1 Font 24/Smallcaps Map View 50x44 Zoom Use 0% Tactical HUD 1 Map Filters NONE Filters NONE Steam 1 RUN: 39ec179b-f3bc-439e-ae51-3c2e328b35ff